[Event "Top 12 Féminin 2026"]
[Site "Asnières-sur-Seine, France"]
[Date "2026.05.16"]
[Round "4.10"]
[White "Schippke, Manon"]
[Black "Fernandez, Laura"]
[Result "1-0"]
[TimeControl "1h30 / 40 moves + 30m + 30sec/move"]
[WhiteTitle "WIM"]
[BlackTitle "-"]
[WhiteFideId "-"]
[BlackFideId "-"]
[WhiteElo "2311"]
[BlackElo "2017"]

1. e4 {[%clk 01:30:57]} {[%emt 00:00:02]} d5 {[%clk 01:30:48]} {[%emt
00:00:12]} 2. exd5 {[%clk 01:31:22]} {[%emt 00:00:05]} Qxd5 {[%clk 01:31:12]}
{[%emt 00:00:07]} 3. Nc3 {[%clk 01:31:47]} {[%emt 00:00:04]} Qd6 {[%clk
01:31:30]} {[%emt 00:00:12]} 4. d4 {[%clk 01:31:14]} {[%emt 00:01:03]} Nf6
{[%clk 01:31:38]} {[%emt 00:00:23]} 5. Nf3 {[%clk 01:27:38]} {[%emt 00:04:06]}
a6 {[%clk 01:31:36]} {[%emt 00:00:32]} 6. h3 {[%clk 01:21:05]} {[%emt
00:07:03]} c5 {[%clk 01:21:57]} {[%emt 00:10:09]} 7. dxc5 {[%clk 01:14:55]}
{[%emt 00:06:40]} Qxd1+ {[%clk 01:21:42]} {[%emt 00:00:45]} 8. Nxd1 {[%clk
01:13:25]} {[%emt 00:02:00]} e6 {[%clk 01:20:48]} {[%emt 00:01:24]} 9. b4
{[%clk 01:11:40]} {[%emt 00:02:15]} a5 {[%clk 01:17:37]} {[%emt 00:03:42]} 10.
c3 {[%clk 01:10:47]} {[%emt 00:01:23]} Nd5 {[%clk 01:12:29]} {[%emt 00:05:38]}
11. Bd2 {[%clk 00:54:48]} {[%emt 00:16:29]} Be7 {[%clk 01:04:11]} {[%emt
00:08:48]} 12. Bc4 {[%clk 00:53:38]} {[%emt 00:01:40]} Bf6 {[%clk 00:47:35]}
{[%emt 00:17:06]} 13. Rb1 {[%clk 00:53:04]} {[%emt 00:01:04]} O-O {[%clk
00:44:18]} {[%emt 00:03:48]} 14. O-O {[%clk 00:51:19]} {[%emt 00:02:13]} Nc6
{[%clk 00:42:14]} {[%emt 00:02:36]} 15. Re1 {[%emt 00:09:25]} Rd8 {[%clk
00:40:58]} 16. a3 {[%clk 00:43:18]} {[%emt 00:01:21]} axb4 {[%clk 00:37:59]}
{[%emt 00:03:30]} 17. axb4 {[%clk 00:43:44]} {[%emt 00:00:03]} Ra3 {[%clk
00:36:59]} {[%emt 00:01:30]} 18. Bxd5 {[%clk 00:40:23]} {[%emt 00:03:50]} Rxd5
{[%clk 00:35:23]} {[%emt 00:02:07]} 19. Ne3 {[%clk 00:39:35]} {[%emt 00:01:18]}
Rd3 {[%clk 00:34:21]} {[%emt 00:01:32]} 20. Nc4 {[%clk 00:39:15]} {[%emt
00:00:50]} Ra2 {[%clk 00:32:34]} {[%emt 00:02:17]} 21. Nb6 {[%clk 00:33:48]}
{[%emt 00:05:56]} Rd8 {[%clk 00:23:56]} {[%emt 00:09:09]} 22. Bg5 {[%clk
00:33:04]} {[%emt 00:01:14]} Bxg5 {[%clk 00:22:22]} {[%emt 00:02:04]} 23. Nxg5
{[%clk 00:29:47]} {[%emt 00:03:47]} e5 {[%clk 00:22:02]} {[%emt 00:00:51]} 24.
Rbd1 {[%clk 00:26:30]} {[%emt 00:03:46]} Re8 {[%clk 00:15:26]} {[%emt
00:07:06]} 25. Nxc8 {[%clk 00:26:37]} {[%emt 00:00:23]} Rxc8 {[%clk 00:15:48]}
{[%emt 00:00:08]} 26. Rd7 {[%clk 00:27:03]} {[%emt 00:00:04]} h6 {[%clk
00:15:02]} {[%emt 00:01:16]} 27. Ne4 {[%clk 00:26:41]} {[%emt 00:00:52]} Rd8
{[%clk 00:13:06]} {[%emt 00:02:26]} 28. Rxb7 {[%clk 00:26:50]} {[%emt
00:00:20]} Rd3 {[%clk 00:12:29]} {[%emt 00:01:07]} 29. b5 {[%clk 00:26:47]}
{[%emt 00:00:34]} Na7 {[%clk 00:11:06]} {[%emt 00:01:53]} 30. c6 {[%clk
00:26:38]} {[%emt 00:00:39]} f5 {[%clk 00:11:28]} {[%emt 00:00:08]} 31. c7
{[%clk 00:26:44]} {[%emt 00:00:24]} Nc8 {[%clk 00:10:12]} {[%emt 00:01:45]} 32.
Rb8 {[%clk 00:27:09]} {[%emt 00:00:05]} fxe4 {[%clk 00:10:36]} {[%emt
00:00:05]} 33. Rxc8+ {[%emt 00:00:23]} Kf7 {[%clk 00:10:46]} 34. Rf8+ {[%clk
00:28:01]} {[%emt 00:00:04]} Kxf8 {[%clk 00:11:12]} {[%emt 00:00:04]} 35. c8=Q+
{[%clk 00:28:28]} {[%emt 00:00:04]} Ke7 {[%clk 00:11:26]} {[%emt 00:00:16]} 36.
Rxe4 {[%clk 00:28:40]} {[%emt 00:00:17]} 1-0

[Event "Top 12 Féminin 2026"]
[Site "Asnières-sur-Seine, France"]
[Date "2026.05.16"]
[Round "4.11"]
[White "Aubert, Estee"]
[Black "Daulyte-Cornette, Deimante"]
[Result "0-1"]
[TimeControl "1h30 / 40 moves + 30m + 30sec/move"]
[WhiteTitle "-"]
[BlackTitle "IM"]
[WhiteFideId "-"]
[BlackFideId "-"]
[WhiteElo "1974"]
[BlackElo "2389"]

1. d4 {[%clk 01:30:56]} {[%emt 00:00:04]} d5 {[%clk 01:30:54]} {[%emt
00:00:06]} 2. Bf4 {[%clk 01:31:21]} {[%emt 00:00:04]} c5 {[%emt 00:00:44]} 3.
e4 {[%clk 01:31:17]} dxe4 {[%clk 01:31:03]} {[%emt 00:00:41]} 4. d5 {[%clk
01:31:43]} {[%emt 00:00:04]} Nf6 {[%clk 01:30:55]} {[%emt 00:00:37]} 5. Nc3
{[%clk 01:32:01]} {[%emt 00:00:12]} g6 {[%clk 01:30:55]} {[%emt 00:00:31]} 6.
Qe2 {[%clk 01:32:10]} {[%emt 00:00:21]} Bg7 {[%clk 01:18:27]} {[%emt 00:12:58]}
7. O-O-O {[%clk 01:32:10]} {[%emt 00:00:29]} O-O {[%clk 01:18:29]} {[%emt
00:00:29]} 8. Nxe4 {[%clk 01:30:53]} {[%emt 00:01:46]} Nxe4 {[%clk 01:07:42]}
{[%emt 00:11:17]} 9. Qxe4 {[%clk 01:31:19]} {[%emt 00:00:05]} Bf5 {[%clk
01:07:56]} {[%emt 00:00:16]} 10. Qe3 {[%clk 01:31:36]} {[%emt 00:00:12]} Qa5
{[%clk 00:56:40]} {[%emt 00:11:47]} 11. a3 {[%clk 01:31:16]} {[%emt 00:00:51]}
Nd7 {[%clk 00:53:38]} {[%emt 00:03:32]} 12. Bh6 {[%clk 01:17:18]} {[%emt
00:14:28]} Qa4 {[%clk 00:47:12]} {[%emt 00:06:56]} 13. Rd2 {[%clk 01:15:12]}
{[%emt 00:02:35]} Bd4 {[%clk 00:38:32]} {[%emt 00:09:10]} 14. Qg3 {[%clk
00:40:35]} {[%emt 00:35:08]} Nf6 {[%clk 00:31:13]} {[%emt 00:07:49]} 15. Bd3
{[%clk 00:35:20]} {[%emt 00:05:46]} Nh5 {[%clk 00:23:26]} {[%emt 00:08:16]} 16.
Qf3 {[%clk 00:30:40]} {[%emt 00:05:08]} Bg4 {[%clk 00:23:52]} {[%emt 00:00:06]}
17. Qe4 {[%clk 00:31:03]} {[%emt 00:00:07]} Nf6 {[%clk 00:24:18]} {[%emt
00:00:04]} 18. Qe1 {[%clk 00:30:52]} {[%emt 00:00:41]} c4 {[%clk 00:16:51]}
{[%emt 00:07:57]} 19. Bxc4 {[%clk 00:19:34]} {[%emt 00:11:48]} Qxc4 {[%clk
00:17:06]} {[%emt 00:00:15]} 20. Bxf8 {[%clk 00:19:26]} {[%emt 00:00:38]} Kxf8
{[%clk 00:17:05]} {[%emt 00:00:31]} 21. h3 {[%clk 00:17:54]} {[%emt 00:02:02]}
Bf5 {[%clk 00:15:28]} {[%emt 00:02:06]} 22. Nf3 {[%clk 00:13:18]} {[%emt
00:05:06]} Bb6 {[%clk 00:13:43]} {[%emt 00:02:15]} 23. Qe5 {[%clk 00:11:18]}
{[%emt 00:02:30]} Bc7 {[%clk 00:13:59]} {[%emt 00:00:14]} 24. Qd4 {[%clk
00:10:51]} {[%emt 00:00:56]} Qa2 {[%clk 00:13:50]} {[%emt 00:00:39]} 25. Rdd1
{[%clk 00:11:04]} {[%emt 00:00:17]} Ba5 {[%clk 00:10:55]} {[%emt 00:03:24]} 26.
b3 {[%clk 00:11:08]} {[%emt 00:00:27]} Qxc2# {[%clk 00:11:19]} {[%emt
00:00:06]} 0-1

[Event "Top 12 Féminin 2026"]
[Site "Asnières-sur-Seine, France"]
[Date "2026.05.16"]
[Round "4.12"]
[White "Tomasi, Elise"]
[Black "Auvray, Honorine"]
[Result "1/2-1/2"]
[TimeControl "1h30 / 40 moves + 30m + 30sec/move"]
[WhiteTitle "WFM"]
[BlackTitle "WFM"]
[WhiteFideId "-"]
[BlackFideId "-"]
[WhiteElo "2072"]
[BlackElo "2025"]

1. d4 {[%clk 01:30:48]} {[%emt 00:00:11]} d5 {[%clk 01:30:45]} {[%emt
00:00:16]} 2. Nf3 {[%clk 01:31:11]} {[%emt 00:00:07]} Nf6 {[%clk 01:31:02]}
{[%emt 00:00:14]} 3. g3 {[%clk 01:31:15]} {[%emt 00:00:26]} e6 {[%clk
01:31:13]} {[%emt 00:00:19]} 4. Bg2 {[%clk 01:31:40]} {[%emt 00:00:05]} Be7
{[%clk 01:31:17]} {[%emt 00:00:26]} 5. O-O {[%clk 01:31:50]} {[%emt 00:00:19]}
O-O {[%clk 01:31:17]} {[%emt 00:00:30]} 6. c4 {[%clk 01:32:07]} {[%emt
00:00:13]} c6 {[%clk 01:31:09]} {[%emt 00:00:39]} 7. Qc2 {[%clk 01:32:06]}
{[%emt 00:00:31]} b6 {[%clk 01:30:59]} {[%emt 00:00:40]} 8. Nbd2 {[%clk
01:32:09]} {[%emt 00:00:26]} Bb7 {[%clk 01:30:20]} {[%emt 00:01:10]} 9. e4
{[%clk 01:32:21]} {[%emt 00:00:17]} Na6 {[%clk 01:30:01]} {[%emt 00:00:49]} 10.
a3 {[%clk 01:32:36]} {[%emt 00:00:16]} c5 {[%clk 01:29:35]} {[%emt 00:00:56]}
11. cxd5 {[%clk 01:26:02]} {[%emt 00:07:04]} exd5 {[%clk 01:28:06]} {[%emt
00:01:59]} 12. e5 {[%emt 00:01:00]} Ne4 {[%clk 01:22:57]} {[%emt 00:05:33]} 13.
dxc5 {[%clk 01:19:09]} {[%emt 00:07:00]} Naxc5 {[%clk 01:17:18]} {[%emt
00:06:08]} 14. b4 {[%clk 01:18:57]} {[%emt 00:00:42]} Nxd2 {[%clk 01:14:16]}
{[%emt 00:03:32]} 15. Nxd2 {[%clk 01:06:08]} {[%emt 00:13:19]} Ne6 {[%clk
01:11:00]} {[%emt 00:03:46]} 16. Bb2 {[%clk 01:02:43]} {[%emt 00:03:55]} a5
{[%clk 01:00:07]} {[%emt 00:11:23]} 17. Qb3 {[%clk 00:58:55]} {[%emt 00:04:18]}
Qd7 {[%clk 00:48:29]} {[%emt 00:12:09]} 18. f4 {[%clk 00:52:36]} {[%emt
00:06:48]} axb4 {[%clk 00:45:47]} {[%emt 00:03:13]} 19. axb4 {[%clk 00:52:18]}
{[%emt 00:00:47]} Qb5 {[%clk 00:36:20]} {[%emt 00:09:57]} 20. Rxa8 {[%clk
00:38:07]} {[%emt 00:14:41]} Bxa8 {[%clk 00:29:29]} {[%emt 00:07:22]} 21. f5
{[%clk 00:35:19]} {[%emt 00:03:18]} Ng5 {[%clk 00:23:32]} {[%emt 00:06:26]} 22.
f6 {[%clk 00:19:47]} {[%emt 00:16:01]} Bxb4 {[%clk 00:20:54]} {[%emt 00:03:09]}
23. fxg7 {[%clk 00:17:27]} {[%emt 00:02:50]} Re8 {[%clk 00:17:47]} {[%emt
00:03:37]} 24. Bd4 {[%clk 00:17:16]} {[%emt 00:00:42]} Ne6 {[%clk 00:15:00]}
{[%emt 00:03:17]} 25. Bf2 {[%clk 00:16:22]} {[%emt 00:01:22]} Qa5 {[%clk
00:11:40]} {[%emt 00:03:51]} 26. Nf3 {[%clk 00:16:26]} {[%emt 00:00:26]} Bc5
{[%clk 00:11:36]} {[%emt 00:00:35]} 27. Qd3 {[%clk 00:16:05]} {[%emt 00:00:50]}
Bxf2+ {[%clk 00:10:57]} {[%emt 00:01:09]} 28. Rxf2 {[%clk 00:16:34]} {[%emt
00:00:02]} Qc5 {[%clk 00:11:06]} {[%emt 00:00:21]} 29. Qf5 {[%clk 00:15:25]}
{[%emt 00:01:38]} Nxg7 {[%clk 00:09:59]} {[%emt 00:01:37]} 30. Qf4 {[%clk
00:15:07]} {[%emt 00:00:49]} Ne6 {[%clk 00:06:15]} {[%emt 00:04:14]} 31. Qf5
{[%clk 00:14:38]} {[%emt 00:01:00]} Qc1+ {[%clk 00:05:45]} {[%emt 00:00:59]} 32.
Bf1 {[%clk 00:13:32]} {[%emt 00:01:36]} Rf8 {[%clk 00:04:10]} {[%emt 00:02:05]}
33. Qh3 {[%clk 00:10:33]} {[%emt 00:03:29]} d4 {[%clk 00:03:41]} {[%emt
00:00:59]} 34. Nxd4 {[%clk 00:10:56]} {[%emt 00:00:08]} Nxd4 {[%clk 00:03:16]}
{[%emt 00:00:55]} 35. Qg4+ {[%clk 00:11:25]} Kh8 {[%clk 00:03:32]} {[%emt
00:00:13]} 36. Qxd4 {[%clk 00:11:50]} {[%emt 00:00:05]} Qc5 {[%clk 00:02:04]}
{[%emt 00:01:58]} 37. Qf4 {[%clk 00:11:20]} {[%emt 00:01:00]} Kg8 {[%clk
00:01:05]} {[%emt 00:01:29]} 38. Qg5+ {[%clk 00:09:40]} {[%emt 00:02:10]} Kh8
{[%clk 00:01:29]} {[%emt 00:00:06]} 39. Qh6 {[%clk 00:09:56]} {[%emt 00:00:14]}
Be4 {[%clk 00:01:04]} {[%emt 00:00:55]} 40. h4 {[%clk 00:07:44]} {[%emt
00:02:43]} b5 {[%clk 00:00:44]} {[%emt 00:00:50]} 41. h5 {[%clk 00:02:09]}
{[%emt 00:06:05]} Qe7 {[%clk 00:15:03]} {[%emt 00:16:11]} 42. Bxb5 {[%clk
00:30:52]} {[%emt 00:01:47]} Rb8 {[%clk 00:13:19]} {[%emt 00:02:13]} 43. Bf1
{[%clk 00:22:43]} {[%emt 00:08:39]} Qxe5 {[%clk 00:13:01]} {[%emt 00:00:48]} 44.
Qf4 {[%clk 00:22:21]} {[%emt 00:00:52]} 1/2-1/2

[Event "Top 12 Féminin 2026"]
[Site "Asnières-sur-Seine, France"]
[Date "2026.05.16"]
[Round "4.13"]
[White "Cosma, Elena-Luminita"]
[Black "Krasteva, Beloslava"]
[Result "0-1"]
[TimeControl "1h30 / 40 moves + 30m + 30sec/move"]
[WhiteTitle "WGM"]
[BlackTitle "WGM"]
[WhiteFideId "-"]
[BlackFideId "-"]
[WhiteElo "2241"]
[BlackElo "2285"]

1. d4 {[%clk 01:30:58]} {[%emt 00:00:02]} Nf6 {[%clk 01:23:34]} {[%emt
00:07:26]} 2. Nf3 {[%clk 01:31:20]} {[%emt 00:00:08]} d5 {[%clk 01:23:52]}
{[%emt 00:00:12]} 3. c4 {[%clk 01:31:15]} {[%emt 00:00:35]} e6 {[%clk
01:24:05]} {[%emt 00:00:17]} 4. g3 {[%clk 01:31:32]} {[%emt 00:00:13]} Be7
{[%clk 01:24:08]} {[%emt 00:00:28]} 5. Bg2 {[%clk 01:31:52]} {[%emt 00:00:09]}
O-O {[%clk 01:24:31]} {[%emt 00:00:07]} 6. O-O {[%clk 01:32:13]} {[%emt
00:00:08]} a5 {[%clk 01:24:56]} {[%emt 00:00:06]} 7. b3 {[%clk 01:23:35]}
{[%emt 00:09:09]} a4 {[%clk 01:23:40]} {[%emt 00:01:45]} 8. Ba3 {[%clk
01:22:53]} {[%emt 00:01:12]} b6 {[%clk 01:19:54]} {[%emt 00:04:16]} 9. Ne5
{[%clk 01:09:50]} {[%emt 00:13:34]} Bb7 {[%clk 01:16:01]} {[%emt 00:04:23]} 10.
Bxe7 {[%clk 01:03:52]} {[%emt 00:06:28]} Qxe7 {[%clk 01:16:24]} {[%emt
00:00:07]} 11. Nc3 {[%clk 01:04:16]} {[%emt 00:00:06]} axb3 {[%clk 01:09:23]}
{[%emt 00:07:31]} 12. axb3 {[%clk 01:03:42]} {[%emt 00:01:04]} Na6 {[%clk
01:08:53]} {[%emt 00:01:00]} 13. Qd2 {[%clk 00:51:36]} {[%emt 00:12:36]} Rfd8
{[%clk 00:55:03]} {[%emt 00:14:20]} 14. cxd5 {[%clk 00:37:37]} {[%emt
00:14:29]} exd5 {[%clk 00:54:50]} {[%emt 00:00:43]} 15. e3 {[%clk 00:30:04]}
{[%emt 00:08:03]} c5 {[%clk 00:41:08]} {[%emt 00:14:12]} 16. Rfc1 {[%clk
00:15:20]} {[%emt 00:15:14]} Ne4 {[%clk 00:37:29]} {[%emt 00:04:09]} 17. Qb2
{[%clk 00:09:35]} {[%emt 00:06:16]} Nb4 {[%clk 00:33:19]} {[%emt 00:04:40]} 18.
Nxe4 {[%clk 00:09:42]} {[%emt 00:00:23]} dxe4 {[%clk 00:33:09]} {[%emt
00:00:40]} 19. Rxa8 {[%clk 00:09:21]} {[%emt 00:00:51]} Bxa8 {[%clk 00:32:24]}
{[%emt 00:01:15]} 20. Ra1 {[%clk 00:04:55]} {[%emt 00:04:56]} b5 {[%clk
00:17:35]} {[%emt 00:15:19]} 21. h4 {[%clk 00:05:18]} {[%emt 00:00:07]} f6
{[%clk 00:17:17]} {[%emt 00:00:48]} 22. Ng4 {[%clk 00:05:41]} {[%emt 00:00:07]}
Nd3 {[%clk 00:13:52]} {[%emt 00:03:55]} 23. Qe2 {[%clk 00:05:42]} {[%emt
00:00:29]} Bd5 {[%clk 00:07:06]} {[%emt 00:07:16]} 24. Rb1 {[%clk 00:06:07]}
{[%emt 00:00:05]} Qe6 {[%clk 00:06:09]} {[%emt 00:01:28]} 25. dxc5 {[%clk
00:05:46]} {[%emt 00:00:51]} f5 {[%clk 00:05:57]} {[%emt 00:00:41]} 26. Nh2
{[%clk 00:06:05]} {[%emt 00:00:11]} Bxb3 {[%clk 00:06:10]} {[%emt 00:00:18]} 27.
g4 {[%clk 00:06:09]} {[%emt 00:00:26]} Bc4 {[%clk 00:05:38]} {[%emt 00:01:02]}
28. Nf1 {[%clk 00:03:14]} {[%emt 00:03:24]} Nf4 {[%clk 00:03:27]} {[%emt
00:02:40]} 29. Qb2 {[%clk 00:03:18]} {[%emt 00:00:26]} Ne2+ {[%clk 00:03:45]}
{[%emt 00:00:12]} 30. Kh2 {[%clk 00:03:13]} {[%emt 00:00:35]} Qh6 {[%clk
00:03:58]} {[%emt 00:00:17]} 31. h5 {[%clk 00:03:26]} {[%emt 00:00:17]} Qg5
{[%clk 00:03:28]} {[%emt 00:01:00]} 32. gxf5 {[%clk 00:02:32]} {[%emt
00:01:24]} Qh4+ {[%clk 00:03:19]} {[%emt 00:00:39]} 33. Bh3 {[%clk 00:02:59]}
{[%emt 00:00:03]} Qxf2+ {[%clk 00:03:38]} {[%emt 00:00:11]} 34. Bg2 {[%clk
00:03:26]} {[%emt 00:00:02]} Qh4+ {[%clk 00:03:02]} {[%emt 00:01:07]} 35. Bh3
{[%clk 00:03:55]} {[%emt 00:00:02]} Qf2+ {[%clk 00:02:49]} {[%emt 00:00:42]} 36.
Bg2 {[%clk 00:04:23]} {[%emt 00:00:02]} Qxf5 {[%clk 00:02:40]} {[%emt
00:00:39]} 37. Ng3 {[%clk 00:03:48]} {[%emt 00:01:05]} Nxg3 {[%clk 00:01:33]}
{[%emt 00:01:38]} 38. Kxg3 {[%clk 00:04:17]} Qxh5 {[%clk 00:01:19]} {[%emt
00:00:44]} 39. Ra1 {[%clk 00:02:40]} {[%emt 00:02:07]} Qxc5 {[%clk 00:01:30]}
{[%emt 00:00:18]} 40. Kh2 {[%clk 00:01:38]} {[%emt 00:01:32]} Qxe3 {[%clk
00:01:25]} {[%emt 00:00:36]} 41. Qe5 {[%clk 00:00:46]} {[%emt 00:01:22]} Qh6+
{[%clk 00:00:49]} {[%emt 00:01:06]} 42. Kg1 {[%clk 00:30:25]} {[%emt 00:00:51]}
Qe3+ {[%clk 00:29:21]} {[%emt 00:01:58]} 43. Kh2 {[%clk 00:29:05]} {[%emt
00:01:50]} Qd4 {[%clk 00:29:36]} {[%emt 00:00:15]} 44. Qg5 {[%clk 00:28:16]}
{[%emt 00:01:20]} h6 {[%clk 00:28:34]} {[%emt 00:01:32]} 45. Qe7 {[%clk
00:28:07]} {[%emt 00:00:38]} e3 {[%clk 00:24:34]} {[%emt 00:04:30]} 46. Ra3
{[%clk 00:23:04]} {[%emt 00:05:33]} e2 {[%clk 00:19:59]} {[%emt 00:05:05]} 47.
Rg3 {[%clk 00:23:29]} {[%emt 00:00:05]} Rf8 {[%clk 00:19:23]} {[%emt 00:01:06]}
48. Bf3 {[%clk 00:21:13]} {[%emt 00:02:47]} Qf6 {[%clk 00:17:45]} {[%emt
00:02:08]} 49. Qe4 {[%clk 00:17:47]} {[%emt 00:03:56]} Qe6 {[%clk 00:16:35]}
{[%emt 00:01:39]} 50. Qd4 {[%clk 00:14:08]} {[%emt 00:04:11]} Qe7 {[%clk
00:15:55]} {[%emt 00:01:10]} 0-1

[Event "Top 12 Féminin 2026"]
[Site "Asnières-sur-Seine, France"]
[Date "2026.05.16"]
[Round "4.14"]
[White "Leriche, Ines"]
[Black "Monpeurt, Cyrielle"]
[Result "1/2-1/2"]
[TimeControl "1h30 / 40 moves + 30m + 30sec/move"]
[WhiteTitle "-"]
[BlackTitle "WFM"]
[WhiteFideId "-"]
[BlackFideId "-"]
[WhiteElo "1918"]
[BlackElo "2199"]

1. d4 {[%clk 01:23:36]} {[%emt 00:07:23]} d5 {[%clk 01:30:51]} {[%emt
00:00:09]} 2. Nf3 {[%clk 01:23:47]} {[%emt 00:00:19]} e6 {[%clk 01:30:23]}
{[%emt 00:00:59]} 3. e3 {[%clk 01:23:11]} {[%emt 00:01:07]} Nf6 {[%clk
01:30:33]} {[%emt 00:00:19]} 4. Be2 {[%clk 01:23:36]} {[%emt 00:00:05]} Bd6
{[%clk 01:30:15]} {[%emt 00:00:48]} 5. O-O {[%clk 01:23:54]} {[%emt 00:00:12]}
O-O {[%clk 01:30:23]} {[%emt 00:00:22]} 6. b3 {[%clk 01:21:27]} {[%emt
00:02:58]} b6 {[%clk 01:30:39]} {[%emt 00:00:15]} 7. Bb2 {[%clk 01:21:43]}
{[%emt 00:00:13]} Bb7 {[%clk 01:30:59]} {[%emt 00:00:10]} 8. c4 {[%clk
01:20:18]} {[%emt 00:01:55]} Nbd7 {[%clk 01:29:48]} {[%emt 00:01:40]} 9. Nc3
{[%clk 01:19:11]} {[%emt 00:01:37]} a6 {[%clk 01:28:10]} {[%emt 00:02:09]} 10.
Rc1 {[%clk 01:17:01]} {[%emt 00:02:41]} Ne4 {[%clk 01:26:58]} {[%emt 00:01:42]}
11. Nxe4 {[%clk 01:14:38]} {[%emt 00:02:53]} dxe4 {[%clk 01:27:21]} {[%emt
00:00:06]} 12. Nd2 {[%clk 01:14:53]} {[%emt 00:00:15]} f5 {[%clk 01:18:24]}
{[%emt 00:09:27]} 13. Re1 {[%clk 00:58:19]} {[%emt 00:17:04]} f4 {[%clk
01:07:06]} {[%emt 00:11:47]} 14. Bg4 {[%clk 00:47:44]} {[%emt 00:11:06]} Qf6
{[%clk 00:56:18]} {[%emt 00:11:17]} 15. c5 {[%clk 00:30:59]} {[%emt 00:17:16]}
fxe3 {[%clk 00:47:44]} {[%emt 00:09:04]} 16. fxe3 {[%clk 00:30:00]} {[%emt
00:01:29]} bxc5 {[%clk 00:46:46]} {[%emt 00:01:28]} 17. dxc5 {[%clk 00:27:28]}
{[%emt 00:03:02]} Qf2+ {[%clk 00:46:09]} {[%emt 00:01:07]} 18. Kh1 {[%clk
00:27:56]} {[%emt 00:00:03]} Nxc5 {[%clk 00:46:07]} {[%emt 00:00:32]} 19. Rxc5
{[%clk 00:22:10]} {[%emt 00:06:16]} Bxc5 {[%clk 00:41:03]} {[%emt 00:05:34]} 20.
Bxe6+ {[%clk 00:22:26]} {[%emt 00:00:13]} Kh8 {[%clk 00:41:13]} {[%emt
00:00:20]} 21. Qa1 {[%clk 00:21:22]} {[%emt 00:01:34]} Rg8 {[%clk 00:41:00]}
{[%emt 00:00:43]} 22. Nc4 {[%clk 00:09:57]} {[%emt 00:11:55]} Raf8 {[%clk
00:41:08]} {[%emt 00:00:22]} 23. Ne5 {[%clk 00:08:49]} {[%emt 00:01:38]} Bd6
{[%clk 00:38:49]} {[%emt 00:02:49]} 24. Rd1 {[%clk 00:01:35]} {[%emt 00:07:44]}
Qxe3 {[%clk 00:25:37]} {[%emt 00:13:42]} 25. Nf7+ {[%clk 00:00:40]} {[%emt
00:01:24]} Rxf7 {[%clk 00:25:59]} {[%emt 00:00:08]} 26. Bxf7 {[%clk 00:01:09]}
{[%emt 00:00:02]} Qh6 {[%clk 00:25:24]} {[%emt 00:01:05]} 27. Rxd6 {[%clk
00:00:32]} {[%emt 00:01:07]} cxd6 {[%clk 00:25:46]} {[%emt 00:00:08]} 28. Bxg8
{[%clk 00:00:54]} {[%emt 00:00:08]} Kxg8 {[%clk 00:25:58]} {[%emt 00:00:18]} 29.
Qf1 {[%clk 00:00:33]} {[%emt 00:00:51]} Qd2 {[%clk 00:24:02]} {[%emt 00:02:26]}
30. Bc1 {[%clk 00:00:48]} {[%emt 00:00:16]} Qxa2 {[%clk 00:20:09]} {[%emt
00:04:22]} 31. Qc4+ {[%clk 00:00:49]} {[%emt 00:00:29]} d5 {[%clk 00:20:33]}
{[%emt 00:00:06]} 32. Qc7 {[%clk 00:00:33]} {[%emt 00:00:46]} Qxb3 {[%clk
00:20:51]} {[%emt 00:00:11]} 33. Qd8+ {[%clk 00:00:48]} {[%emt 00:00:16]} Kf7
{[%clk 00:21:15]} {[%emt 00:00:06]} 34. Qd7+ {[%clk 00:01:11]} {[%emt
00:00:07]} Kf8 {[%clk 00:19:06]} {[%emt 00:02:38]} 35. Qd8+ {[%clk 00:01:35]}
{[%emt 00:00:06]} Kf7 {[%clk 00:19:32]} {[%emt 00:00:04]} 36. Qd7+ {[%clk
00:01:59]} {[%emt 00:00:06]} Kf8 {[%clk 00:19:56]} {[%emt 00:00:06]} 1/2-1/2